Cogmind - Beta 13 --- EXPLORER MODE // 2024.05.03 @ 23:17:07 Player: viper Result: Destroyed by L-31 Rogue with Katana Performance ------------- Evolutions (0) 0 Regions Visited (3) 600 Robots Destroyed (38) 190 Value Destroyed (810) 810 Prototype IDs (10) 200 Alien Tech Used (0) 0 Bonus (44) 44 TOTAL SCORE: 1844 Bonus ------- High Alert Combat Kills 11 Follower Combat Kills 33 Cogmind --------- Core Integrity 0/250 Matter 300/300 Energy 100/100 System Corruption 4% Temperature Cool (0) Movement Core (350) Ox6 Location -9/Recycling Parts ------- > --- POWER (1) -------- (None) > --- PROPULSION (2+1) - (None) > --- UTILITY (3+1) ---- Large Storage Unit Structural Scanner (+) Rainbow Chip > --- WEAPON (2) ------- (None) > --- INVENTORY (15) --- Ion Engine Light Ion Engine Aluminum Leg Aluminum Leg Aluminum Leg Scrap Engine Improved Heat Sink Large Matter Pod (150) High-capacity Matter Pod (200) Terrain Scanner Power Shielding Propulsion Shielding Mining Laser Makeshift Spear Peak State ------------ > --- POWER ------------ Improved Ion Engine > --- PROPULSION ------- (None) > --- UTILITY ---------- Large Storage Unit Structural Scanner Targeting Computer Rainbow Chip > --- WEAPON ----------- Shotgun Makeshift Spear > --- INVENTORY -------- Ion Engine Light Ion Engine Aluminum Leg Aluminum Leg Aluminum Leg Scrap Engine Improved Heat Sink Large Matter Pod High-capacity Matter Pod Terrain Scanner Power Shielding Propulsion Shielding Mining Laser [Rating: 27] Favorites ----------- Power Ion Engine Engine Ion Engine Propulsion Aluminum Leg Leg Aluminum Leg Utility Targeting Computer Device Structural Scanner Storage Large Storage Unit Processor Targeting Computer Weapon Light Cannon Energy Gun Medium Laser Ballistic Gun Assault Rifle Ballistic Cannon Light Cannon Special Weapon Mining Laser Piercing Weapon Makeshift Spear Build | -11 -10 -10 -9 ------- Run | Yrd Mat Sub Rec Slots Evolved 1 | . 1 . . Power . | . . . . Propulsion . | . . . . Utility 1 | . 1 . . Weapon . | . . . . Parts Attached 22 | 7 4 5 6 Power 4 | 1 . . 3 Engine 4 | 1 . . 3 Core . | . . . . Reactor . | . . . . Propulsion 2 | 2 . . . Treads . | . . . . Leg 2 | 2 . . . Wheel . | . . . . Hover . | . . . . Flight . | . . . . Utility 6 | 2 2 2 . Device 2 | . 1 1 . Storage 2 | 1 1 . . Processor 2 | 1 . 1 . Hackware . | . . . . Protection . | . . . . Artifact . | . . . . Weapon 10 | 2 2 3 3 Energy Gun 1 | 1 . . . Energy Cannon . | . . . . Ballistic Gun 6 | 1 1 2 2 Ballistic Cannon 1 | . 1 . . Launcher . | . . . . Special Weapon 1 | . . 1 . Impact Weapon . | . . . . Slashing Weapon . | . . . . Piercing Weapon 1 | . . . 1 Special Melee Weapon . | . . . . Unidentified Prototypes . | . . . . Parts Lost 7 | . . . 7 Power 1 | . . . 1 Propulsion 2 | . . . 2 Utility 1 | . . . 1 Weapon 3 | . . . 3 Highest Loss Streak 4 | . . . 4 To Critical Strikes . | . . . . Average Slot Usage (%) 88 | . 99 85 76 Engine 10 | . 12 9 9 Leg 19 | . 25 19 10 Device 10 | . 12 9 9 Storage 10 | . 12 9 9 Processor 15 | . 12 14 19 Energy Gun 1 | . 3 . . Ballistic Gun 10 | . 11 5 10 Ballistic Cannon 7 | . 8 9 5 Naked Turns . | . . . . Heaviest Build 37 | 19 31 32 37 Greatest Support 20 | 20 20 20 20 Greatest Overweight (x) 10 | 3 1 1 10 Average Overweight (x) 1 | . . 1 3 Largest Inventory Capacity 15 | 10 15 15 15 Average Capacity 14 | 9 14 15 15 Most Carried 15 | 4 14 15 15 Average Carried 12 | 1 11 14 14 Final Capacity 15 | 10 15 15 15 Final Carried 15 | 4 14 14 15 Class Distribution -------------------- 95% | Hacker-Mutant 4% | Hacker-Gunner Dominant Class ---------------- Hacker-Mutant | -10/Materials Hacker-Mutant | -10/Subcaves Hacker-Mutant | -9/Recycling Resources | -11 -10 -10 -9 ----------- Run | Yrd Mat Sub Rec Matter Collected 1389 | 186 576 142 485 Remotely . | . . . . Salvage Created 1619 | . 579 58 982 Parts 73 | . 40 5 28 Haulers Intercepted 2 | . 2 . . Recyclers Shooed 5 | . 1 . 4 Parts Field Recycled . | . . . . Retrieved Matter . | . . . . Parts Self-Destructed . | . . . . Prevented . | . . . . Kills | -11 -10 -10 -9 ------- Run | Yrd Mat Sub Rec Combat Hostiles Destroyed 18 | . 10 4 4 Melee 1 | . . . 1 Guns 7 | . 3 2 2 Cannons 10 | . 7 2 1 Classes Destroyed 11 | . 4 2 5 Worker 1 | . . . 1 Tunneler 1 | . . . 1 Hauler 2 | . 2 . . Recycler 11 | . 1 . 10 Turret 2 | . . 2 . Watcher 3 | . 3 . . Swarmer 4 | . . 4 . Grunt 10 | . 10 . . Sentry 2 | . . . 2 Hunter 1 | . . . 1 Programmer 1 | . . . 1 Best Kill Streak 8 | . 6 6 8 Combat Bots Only 4 | . 3 4 1 Max Kills in Single Turn 1 | . 1 1 1 Gunslinging . | . . . . Exploded . | . . . . Melee 1 | . . . 1 Uniques/NPCs Destroyed . | . . . . Combat | -11 -10 -10 -9 -------- Run | Yrd Mat Sub Rec Hostile Shots Fired 155 | . 34 63 58 Missed 60 | . 12 33 15 Damage Taken 926 | 2 176 121 627 Core 250 | 2 29 12 207 Absorbed by Shields . | . . . . Ignored by Resistances 580 | . 111 89 380 Regen/Repaired (Parts) 51 | . 51 . . Core Remaining (%) 99 | 99 . . . Volleys Fired 97 | . 43 16 38 Largest 3 | . 2 2 3 Hottest 135 | . 70 135 75 Shots Fired 188 | . 86 30 72 Gun 108 | . 56 13 39 Cannon 77 | . 30 14 33 Launcher . | . . . . Special 3 | . . 3 . Kinetic 172 | . 73 27 72 Thermal 16 | . 13 3 . Explosive . | . . . . Electromagnetic . | . . . . Robot Hit Streak 74 | . 14 30 74 Robot Miss Streak 3 | . 3 . 1 Penetration Max . | . . . . Secondary Targets 1 | . 1 . . Max Gunslinging Chain 1 | . 1 . . Shots Hit Robots 156 | . 61 24 71 Core Hits 56 | . 26 6 24 Critical Kills . | . . . . Critical Parts Destroyed . | . . . . Critical Strikes 4 | . 1 1 2 Burn 1 | . 1 . . Blast 2 | . . 1 1 Impale 1 | . . . 1 Melee Attacks 5 | . . . 5 Impact . | . . . . Slashing . | . . . . Piercing 5 | . . . 5 Sneak Attacks 3 | . . . 3 Combat Hostiles 1 | . . . 1 Follow-up Attacks . | . . . . Damage Inflicted 2609 | 4 879 369 1357 Guns 1259 | . 536 150 573 Cannons 1093 | . 343 219 531 Explosions . | . . . . Melee 252 | . . . 252 Ramming 5 | 4 . . 1 Kinetic 2212 | . 739 369 1104 Thermal 140 | . 140 . . Explosive . | . . . . Electromagnetic . | . . . . Impact . | . . . . Slashing . | . . . . Piercing 252 | . . . 252 Highest Corruption 4 | . 1 1 4 Average Corruption 1 | . 1 1 2 Corruption Purged . | . . . . Corruption Blocked . | . . . . Effects 24 | . 1 1 22 Message Errors 7 | . . . 7 Matter Fused 5 | . . 1 4 Heat Flow Errors 4 | . . . 4 Energy Discharges 2 | . 1 . 1 Data Loss (minor) 5 | . . . 5 Data Loss (major) 1 | . . . 1 Overload Shots . | . . . . Overflow Damage 108 | . 7 15 86 Projectiles 51 | . 7 15 29 Explosions . | . . . . Melee 57 | . . . 57 Knockbacks 15 | . 4 3 8 Impact . | . . . . Kinetic 15 | . 4 3 8 Secondary . | . . . . Self-Inflicted Damage 2 | 2 . . . Shots . | . . . . Rammed 2 | 1 . . 1 Targets Rammed 2 | 1 . . 1 Kicked . | . . . . Crushed . | . . . . Highest Temperature 267 | . 120 . 267 Average Temperature 52 | . 35 . 75 Received Heat Transfer 369 | . 186 114 69 Siege Activations . | . . . . Robots Corrupted . | . . . . Combat Hostiles . | . . . . Parts Fried . | . . . . Impact Corruptions . | . . . . Robots Melted . | . . . . Combat Hostiles . | . . . . Parts Melted 1 | . 1 . . Heat Transferred 481 | . 481 . . Parts Sabotaged . | . . . . Parts Stolen . | . . . . Parts Stripped . | . . . . Power Chain Reactions . | . . . . Alert | -11 -10 -10 -9 ------- Run | Yrd Mat Sub Rec Peak Influence 424 | . 182 . 424 Initial 304 | . . . 304 Average 91 | . 50 . 152 Maximum Alert Level 2 | . . . 2 Low Security (%) 87 | 100 100 . 69 Level 1 11 | . . . 26 Level 2 1 | . . . 4 Level 3 . | . . . . Level 4 . | . . . . Level 5 . | . . . . High Security . | . . . . Max Security . | . . . . Squads Dispatched 2 | . 2 . . Investigation 2 | . 2 . . Extermination . | . . . . Reinforcement . | . . . . Assault . | . . . . Garrison . | . . . . Intercept . | . . . . Searches Triggered . | . . . . Construction Impeded . | . . . . Haulers Reinforced . | . . . . Active Scanning Responses . | . . . . Cargo Convoy Interrupts . | . . . . Stealth | -11 -10 -10 -9 --------- Run | Yrd Mat Sub Rec Distress Signals . | . . . . Communications Jammed . | . . . . Distress Signals . | . . . . Times Spotted 53 | . 14 27 12 Peak Tracking Total 5 | . 5 4 5 Tactical Retreats 5 | . . 4 1 Traps | -11 -10 -10 -9 ------- Run | Yrd Mat Sub Rec Traps Triggered 1 | . 1 . . Indirectly . | . . . . Trap Hack Attempts . | . . . . Triggered . | . . . . Disarmed . | . . . . Reprogrammed . | . . . . Reused . | . . . . Traps Extracted . | . . . . Installed . | . . . . Triggered . | . . . . Machines | -11 -10 -10 -9 ---------- Run | Yrd Mat Sub Rec Machines Disabled 2 | . . 2 . Max in Single Turn 1 | . . 1 . Machines Repaired . | . . . . Machines Dismantled . | . . . . Machines Sabotaged . | . . . . Overloaded Fab Kills . | . . . . Hacking | -11 -10 -10 -9 --------- Run | Yrd Mat Sub Rec Machines Accessed 8 | . 5 1 2 Terminals 6 | . 4 . 2 Fabricators . | . . . . Repair Stations 1 | . 1 . . Recycling Units . | . . . . Scanalyzers . | . . . . Garrison Access . | . . . . Total Hacks 30 | . 15 9 6 Successful 23 | . 11 9 3 Failed 7 | . 4 . 3 Catastrophic . | . . . . Database Lockouts . | . . . . Manual . | . . . . Terminals 18 | . 12 . 6 Fabricators . | . . . . Repair Stations 3 | . 3 . . Recycling Units . | . . . . Scanalyzers . | . . . . Garrison Access . | . . . . Terminal Hacks 20 | . 8 9 3 Record 9 | . 1 8 . Recycling Unit Index 1 | . . . 1 Locate Traps 1 | . 1 . . Reinforcement Status 1 | . . . 1 Assault Status 1 | . 1 . . Hauler Manifests 2 | . 2 . . Zone Layout 4 | . 3 . 1 Derelict Proto ID Bank 1 | . . 1 . Fabricator Hacks . | . . . . Repair Station Hacks 3 | . 3 . . Scan Component 2 | . 2 . . Repair 1 | . 1 . . Recycling Unit Hacks . | . . . . Scanalyzer . | . . . . Garrison Access Hacks . | . . . . Unauthorized Hacks . | . . . . Terminals . | . . . . Fabricators . | . . . . Repair Stations . | . . . . Recycling Units . | . . . . Scanalyzers . | . . . . Garrison Access . | . . . . Data Cores Recovered . | . . . . Used . | . . . . Hacking Detections 7 | . 5 . 2 Full Trace Events 5 | . 3 . 2 Feedback Events 1 | . . . 1 Corruption 1 | . . . 1 Feedback Blocked . | . . . . Robot Schematics Acquired . | . . . . Robots Built . | . . . . Authchips . | . . . . Time . | . . . . Total Robot Build Rating . | . . . . Part Schematics Acquired . | . . . . Parts Built . | . . . . Authchips . | . . . . Time . | . . . . Total Part Build Rating . | . . . . Parts Repaired 1 | . 1 . . Time 26 | . 26 . . Parts Recycled . | . . . . Recycled Matter . | . . . . Retrieved Matter . | . . . . Retrieved Components . | . . . . Parts Scanalyzed . | . . . . Part Schematics Acquired . | . . . . Parts Damaged . | . . . . Bothacking | -11 -10 -10 -9 ------------ Run | Yrd Mat Sub Rec Used RIF Installer . | . . . . Robots Hacked . | . . . . Non-combat . | . . . . Combat . | . . . . Robot Hacks Applied . | . . . . Relay Couplers Released . | . . . . Fabnet Peak Effective % . | . . . . Robots Rewired 4 | . . . 4 Allies Hacked . | . . . . Hacks Repelled . | . . . . Allies | -11 -10 -10 -9 -------- Run | Yrd Mat Sub Rec Total Allies 4 | . . . 4 Largest Group 3 | . . . 3 Highest-Rated Group 53 | . . . 53 Highest-Rated Ally 34 | . . . 34 Total Orders . | . . . . Ally Attacks 1 | . . . 1 Total Damage 47 | . . . 47 Kills 1 | . . . 1 Allies Corrupted . | . . . . Allies Melted . | . . . . Intel | -11 -10 -10 -9 ------- Run | Yrd Mat Sub Rec Robot Analysis Total . | . . . . Derelict Logs Recovered . | . . . . Drone Launches . | . . . . Drone Recoveries . | . . . . Exploration | -11 -10 -10 -9 ------------- Run | Yrd Mat Sub Rec Turns Passed 3758 | 96 1700 659 1303 Spaces Moved 1573 | 63 781 315 414 Core 109 | 12 . . 97 Treads . | . . . . Legs 1464 | 51 781 315 317 Wheels . | . . . . Hover . | . . . . Flight . | . . . . Fastest Speed 50 | 50 120 190 190 Average Speed 208 | 123 188 190 272 Slowest Speed 550 | 200 190 190 550 Overloaded Moves . | . . . . Propulsion Burnouts . | . . . . Robots Hopped . | . . . . Cave-ins Triggered . | . . . . Exploration Rate (%) 52 | 4 99 22 85 Regions Visited 3 Branch Regions 2 Pre-discovered Areas . | . . . . Known Exits Taken 3 | 1 1 1 . Unknown Exits Taken . | . . . . Scrap Searched 1 | . . 1 . Spaces Dug . | . . . . Terrain Destroyed . | . . . . Melee . | . . . . Projectile . | . . . . AOE . | . . . . Terrain Rammed . | . . . . Walls Destroyed . | . . . . Machines Disabled . | . . . . Actions | -11 -10 -10 -9 --------- Run | Yrd Mat Sub Rec Total 1856 | 77 926 340 513 Wait 100 | 3 87 . 10 Move 1570 | 62 780 314 414 Hop . | . . . . Pick Up 17 | 4 10 2 1 Fast Attach 13 | 7 2 2 2 Attach 5 | . 1 2 2 Detach 5 | . 1 1 3 Swap 4 | . 1 1 2 Drop 8 | . 1 2 5 Fire 97 | . 43 16 38 Melee 5 | . . . 5 Ram 2 | 1 . . 1 Kick . | . . . . Crush . | . . . . Escape Stasis . | . . . . Rewire 30 | . . . 30 Trap . | . . . . Miscellaneous . | . . . . Route ------- -11/Scrapyard -10/Materials (discovered 6 exits: *Mat x3 / *Min x2 / *Sub) -10/Subcaves (discovered 2 exits: *Mat / *Rec) -9/Recycling History --------- Turn | Location | Event 15 | -11/Scrapyard | Identified exit to Materials 15 | -11/Scrapyard | Discovered exit to Materials (range 14) 97 | -11/Scrapyard | Entered Materials 97 | -10/Materials | Evolved 1 slot: Utility x1 134 | -10/Materials | Identified exit to Subcaves 134 | -10/Materials | Discovered exit to Subcaves (range 11) 257 | -10/Materials | Identified exit to Materials 257 | -10/Materials | Discovered exit to Materials (range 13) 300 | -10/Materials | Build established: Hacker-Mutant 478 | -10/Materials | Discovered exit to Materials (range 15) 480 | -10/Materials | Identified exit to Mines 480 | -10/Materials | Discovered exit to Mines (range 15) 641 | -10/Materials | Discovered exit to Mines (range 14) 1193 | -10/Materials | Repaired Assault Rifle 1485 | -10/Materials | Discovered exit to Materials (range 7) 1797 | -10/Materials | Entered Subcaves 1832 | -10/Subcaves | Identified exit to Materials 1832 | -10/Subcaves | Discovered exit to Materials (range 8) 2018 | -10/Subcaves | Visited 4L-MR0's lab 2038 | -10/Subcaves | Found Rainbow Chip 2041 | -10/Subcaves | Attached Rainbow Chip, gained temporary slots: Power, Propulsion, Utility, Weapon 2391 | -10/Subcaves | Identified exit to Recycling 2391 | -10/Subcaves | Discovered exit to Recycling (range 13) 2456 | -10/Subcaves | Entered Recycling 2469 | -9/Recycling | Found Scrap Engine 3192 | -9/Recycling | Core integrity fell below 50% 3206 | -9/Recycling | Lost 3 allies 3214 | -9/Recycling | Lost 4 parts (2n2w) 3752 | -9/Recycling | P-60 Hacker assimilated allied Grenadier 2a 3757 | -9/Recycling | Core integrity fell below 20% 3759 | -9/Recycling | Destroyed by L-31 Rogue with Katana Last Messages --------------- 03752_ G-34 Mercenary springs to life. 03753_ Y-45 Defender destroyed. 03753_ Attempting to rewire Grenadier 2a. 03753_ Grenadier 2a is rebooting, system inaccessible. 03754_ Attempting to rewire Grenadier 2a. 03754_ Grenadier 2a is rebooting, system inaccessible. 03755_ Shotgun destroyed. 03755_ Attempting to rewire Grenadier 2a. 03755_ Grenadier 2a is rebooting, system inaccessible. 03755_ Targeting Computer destroyed. 03755_ Imp. Ion Engine destroyed. 03756_ Attempting to rewire Grenadier 2a. 03756_ Grenadier 2a is rebooting, system inaccessible. 03757_ Grenadier 2a reactivates. 03757_ Slammed into Grenadier 2a. 03759_ R-06 Scavenger collects Hvy. Assault Rifle. Map ----- +----------------------------------------------------+ | ??## ### # ##? | | ??## ### # ##? | | ??################# ###############? | | ########"""######## ###############? | | ########"Y"######## ##?????????????? | | ## ##?????????????? | | ## ##?????????????? | | ## #####??????????? | | #################+#########??????????? | | ########## !!! ##??????????? | | #???????## ! ##??????????? | | #???????## !! ! ##??????????? | | #???????## ! ! ! ##??????????? | | #???????## ##??????????? | | #??????####################??????????? | | ################################?????? | | ######### ######################?????? | | ### ##?????? | | ###k! [! ##?????? | | ###i/ u dh##?????? | | ### k! rg ##?????? | | ### =p p i ##?????? | | ### grgbri ##?????? | | ###h g%r! ##?????? | | ###] gd l ######?? | | ############+############@##########?? | | % ##?? | | ##?? | | #### | | #####+###################+##### ""## | | ## ####### ### Y"## | | ## ##????????? ##????""## | | ## ##?????## ##????###? | | # ##?????## ##????###? | | ## ##?????## ##???????? | | ## ##?????## ##???????? | | ## ##?????## ##???????? | | ## ##?????## ##???????? | | ## ##?????###### ######???????? | | ############?????#############???????? | | ############?????????####????????????? | | ?????????????????????????????????????? | | ?????????????????????????????????????? | | ?????????????????????????????????????? | | ?????????????????????????????????????? | | | | | | | | | | | +----------------------------------------------------+ Best States ------------- Heat Dissipation 25 Energy Generation 12 Energy Capacity 400 Matter Stores 300 Matter Capacity 300 Sight Range 16 Terrain Scan Density 10 Resistance: KI 35 Resistance: TH 35 Resistance: EX 35 Resistance: EM 35 Resistance: I 35 Resistance: S 35 Resistance: P 35 Evasion (%) 55 Targeting Accuracy 5 Offensive Hacking 20 Item Schematics ----------------- None Robot Schematics ------------------ None Fabricated ------------ Nothing Alien Tech Used ----------------- None Achievements -------------- None Challenges ------------ None Game ------ Seed PropulsionHeavyShearcannon Manual? 0 Play Time 00:22:01 Cumulative 1683.1 hours Start 2024.05.03 @ 22:55:59 End 2024.05.03 @ 23:17:07 Sessions 1 Manual Loads 0 Difficulty Explorer Special Mode None Game No. 955 Rogue 62 Adventurer 0 Explorer 893 Win Type - Total 10 Types 10/0/0/0/0/0/0/0/0 Lore% 69 Gallery% 81 Achievement% 63 Wizard Run 0 Options --------- Layout 1 ASCII 0 Keyboard 0 Movement Mouse Keybinds 0 Fullscreen 1 Font 48/Smallcaps Map View 55x35 Zoom Use 0% Tactical HUD 1 Map Filters NONE Filters NONE Steam 1 RUN: d4ffabe9-5dc2-4794-951e-8dbb420309ce